fUST/lending_fUST_20260413
["ID","MTS","AMOUNT","RATE_DAILY","PERIOD"]
[420352486,1776012639584,-711.81462029,0.00015824,2]
[420352487,1776012639598,-912.0,0.00016033,2]
[420352488,1776012639621,-3248.14151362,0.000161,2]
[420352489,1776012639641,-178.02,0.00016116,2]
[420352490,1776012639656,-196.3797719,0.00016141,2]
[420352491,1776012639668,-2096.82145969,0.000162,2]
[420352492,1776012639683,-812.68688213,0.000162,2]
[420352493,1776012639693,-305.30930839,0.000162,2]
[420352494,1776012639709,-637.0236041,0.000162,2]
[420352495,1776012639719,-513.60415227,0.000162,2]
[420352496,1776012639737,-455.13374754,0.000162,2]
[420352497,1776012639750,-1034.11321081,0.000162,2]
[420352498,1776012639764,-152.0,0.00016322,7]
[420352499,1776012639773,-152.0,0.00016322,7]
[420352500,1776012639783,-152.0,0.00016327,30]
[420352501,1776012639792,-152.0,0.00016327,30]
[420352502,1776012639806,-500.0,0.00016336,2]
[420352503,1776012639815,-500.0,0.00016336,2]
[420352504,1776012639824,-500.0,0.00016336,2]
[420352505,1776012639834,-500.0,0.00016336,2]
[420352506,1776012639843,-137.4566274,0.00016336,2]
[420352513,1776012641686,-7088.59999999,0.0001339,30]
[420352521,1776012643891,-2921.26021807,0.0001339,30]
[420352522,1776012643901,-7109.97237773,0.00013394,30]
[420352523,1776012643914,-2899.88784033,0.00013394,30]
[420352524,1776012643927,-3422.22955142,0.00013524,30]
[420352537,1776012647056,-3469.44627698,0.00013524,30]
[420352556,1776013281459,-1865.69856189,9.9e-05,2]
[420352557,1776013281474,-3134.30143811,9.9e-05,2]
[420352558,1776013281484,-400.39440872,9.9e-05,2]
[420352559,1776013281495,-559.0,9.9e-05,2]
[420352560,1776013281505,-400.39440872,9.975e-05,2]
[420352561,1776013281517,-177.60283934,0.0001,2]
[420352562,1776013281526,-328.30690511,0.0001,2]
[420352636,1776013833055,-685.19338626,4.9e-05,2]
[420352637,1776013833126,-4314.80661374,4.9e-05,2]
[420352638,1776013833142,-48423.87225349,4.9e-05,2]
[420352711,1776013838424,-5000.0,4.851e-05,2]
[420352712,1776013838435,-13432.34964651,4.9e-05,2]
[420352713,1776013838447,-2625.60892154,4.95e-05,2]
[420352714,1776013838473,-500.0,5e-05,2]
[420352715,1776013838485,-2625.60892154,5e-05,2]
[420352716,1776013838505,-30099.76654503,5.145e-05,2]
[420352718,1776013838526,-828.34435497,5.145e-05,2]
[420352719,1776013838542,-10309.3703,5.635e-05,2]
[420352720,1776013838566,-500.0,7.573e-05,2]
[420352721,1776013838576,-2625.60892154,7.599e-05,2]
[420352722,1776013838590,-122489.12335415,7.6e-05,2]
[420352723,1776013838612,-2625.60892154,7.6e-05,2]
[420352724,1776013838622,-50020.42680465,7.857e-05,2]
[420352725,1776013838646,-2625.60892154,7.98e-05,2]
[420352726,1776013838660,-506.13902181,8.121e-05,2]
[420352727,1776013838672,-1961.72262106,8.5e-05,7]
[420352728,1776013838689,-72.08750361,0.0001,2]
[420352729,1776013838700,-1000.0,0.0001,2]
[420352730,1776013838710,-1000.0,0.0001,2]
[420352732,1776013838737,-400.39440872,0.00010274,2]
[420352733,1776013838748,-400.39440872,0.00010574,2]
[420352735,1776013838760,-500.0,0.00010959,2]
[420352737,1776013838790,-500.0,0.00010959,2]
[420352739,1776013838800,-502.17482249,0.00010959,2]
[420352740,1776013838837,-15380.3736,0.00012779,2]
[420352742,1776013838847,-3087.01770073,0.000129,2]
[420352743,1776013838863,-3087.01770067,0.000129,2]
[420352744,1776013838882,-3087.01770067,0.000129,2]
[420352745,1776013838891,-152.0,0.00013049,7]
[420352746,1776013838914,-152.0,0.00013049,7]
[420352747,1776013838925,-152.0,0.00013053,30]
[420352748,1776013838935,-389.22840618,0.00013567,2]
[420352749,1776013838956,-1556.91362471,0.00013567,2]
[420352750,1776013838966,-3499.55259993,0.00013567,2]
[420352751,1776013838976,-3087.01770067,0.00013636,2]
[420352752,1776013838990,-2001.97204361,0.00013659,30]
[420352753,1776013839003,-2001.97204361,0.00013699,30]
[420352754,1776013839014,-5960.4697507,0.00013699,2]
[420352755,1776013839024,-2000.0,0.00013699,7]
[420352756,1776013839038,-1000.0,0.00013699,2]
[420352757,1776013839047,-40104.840308,0.00014,30]
[420352758,1776013839059,-152.0,0.0001401,7]
[420352759,1776013839071,-152.0,0.0001401,7]
[420352760,1776013839082,-152.0,0.00014015,30]
[420352761,1776013839091,-874.0,0.00015,2]
[420352762,1776013839104,-160.0,0.00015,2]
[420352763,1776013839117,-1000.0,0.00015,2]
[420352764,1776013839130,-1000.0,0.00015,2]
[420352765,1776013839143,-3087.01770067,0.00015682,2]
[420352766,1776013839156,-160.0,0.00015707,2]
[420352767,1776013839358,-500.0,0.0001578,2]
[420352768,1776013839374,-885.057,0.00015784,2]
[420352769,1776013839385,-2000.0,0.00015799,7]
[420352770,1776013839395,-302.0,0.00016,2]
[420352771,1776013839404,-500.0,0.00016054,2]
[420352772,1776013839419,-239.90417411,0.000161,2]
[420352773,1776013839430,-325.1876519,0.00016141,2]
[420352774,1776013839440,-151.0,0.000162,2]
[420352775,1776013839449,-151.0,0.000162,2]
[420352776,1776013839463,-151.0,0.000163,2]
[420352777,1776013839473,-151.0,0.000163,2]
[420352778,1776013839482,-152.0,0.00016341,7]
[420352779,1776013839492,-152.0,0.00016341,7]
[420352780,1776013839507,-152.0,0.00016346,30]
[420352781,1776013839518,-2187.812714,0.00016358,2]
[420352782,1776013839527,-168.0,0.00016408,2]
[420352783,1776013839537,-4439.0,0.00016438,2]
[420352784,1776013839555,-1296.2026,0.00016438,2]
[420352785,1776013839566,-521.96,0.00016438,2]
[420352786,1776013839576,-500.0,0.00016438,2]
[420352787,1776013839587,-628.4,0.00016438,2]
[420352788,1776013839605,-510.70586202,0.00016438,2]
[420352789,1776013839615,-500.0,0.00016438,2]
[420352790,1776013839624,-500.0,0.00016438,2]
[420352791,1776013839644,-500.0,0.00016438,2]
[420352792,1776013839654,-211.08331419,0.00016438,2]
[420352793,1776013839665,-500.0,0.00016438,2]
[420352794,1776013839677,-1114.91,0.00016438,2]
[420352795,1776013839691,-500.0,0.00016438,2]
[420352796,1776013839701,-566.12553661,0.00016438,2]
[420352797,1776013839711,-500.0,0.00016438,2]
[420352798,1776013839721,-500.0,0.00016438,2]
[420352799,1776013839735,-500.0,0.00016438,2]
[420352800,1776013839744,-500.0,0.00016438,2]
[420352801,1776013839755,-4851.71,0.00016438,2]
[420352802,1776013839765,-500.0,0.00016438,2]
[420352803,1776013839779,-500.0,0.00016438,2]
[420352804,1776013839788,-500.0,0.00016438,2]
[420352805,1776013839801,-500.0,0.00016438,2]
[420352806,1776013839811,-500.0,0.00016438,2]
[420352807,1776013839826,-500.0,0.00016438,2]
[420352808,1776013839839,-500.0,0.00016438,2]
[420352809,1776013839849,-500.0,0.00016438,2]
[420352810,1776013839866,-511.68701496,0.00016438,2]
[420352812,1776013839882,-500.0,0.00016438,2]
[420352814,1776013839892,-3842.06,0.00016438,2]
[420352817,1776013839908,-500.0,0.00016438,2]
[420352819,1776013839923,-500.0,0.00016438,2]
[420352821,1776013839933,-500.0,0.00016438,2]
[420352823,1776013839944,-500.0,0.00016438,2]
[420352824,1776013839960,-500.0,0.00016438,2]
[420352827,1776013839972,-500.0,0.00016438,2]
[420352828,1776013839986,-2872.61,0.00016438,2]
[420352830,1776013840004,-389.70033434,0.00016438,2]
[420352831,1776013840013,-901.6,0.00016438,2]
[420352832,1776013840027,-500.0,0.00016438,2]
[420352833,1776013840037,-528.37142783,0.00016438,2]
[420352834,1776013840049,-500.0,0.00016438,2]
[420352835,1776013840062,-751.83,0.00016438,2]
[420352836,1776013840077,-5895.0,0.00016438,2]
[420352838,1776013840088,-437.37244235,0.00016438,2]
[420352839,1776013840099,-500.0,0.00016438,2]
[420352840,1776013840118,-500.0,0.00016438,2]
[420352841,1776013840129,-500.0,0.00016438,2]
[420352842,1776013840142,-500.0,0.00016438,2]
[420352843,1776013840384,-500.0,0.00016438,2]
[420352845,1776013840410,-500.0,0.00016438,2]
[420352847,1776013840446,-500.0,0.00016438,2]
[420352849,1776013840472,-500.0,0.00016438,2]
[420352850,1776013840496,-500.0,0.00016438,2]
[420352851,1776013840514,-500.0,0.00016438,2]
[420352852,1776013840544,-500.0,0.00016438,2]
[420352853,1776013840567,-500.0,0.00016438,2]
[420352854,1776013840588,-511.08171622,0.00016438,2]
[420352855,1776013840604,-500.0,0.00016438,2]
[420352856,1776013840622,-607.93814343,0.00016438,2]
[420352857,1776013840636,-500.0,0.00016438,2]
[420352858,1776013840648,-500.0,0.00016438,2]
[420352859,1776013840663,-500.0,0.00016438,2]
[420352860,1776013840677,-500.0,0.00016438,2]
[420352861,1776013840687,-500.0,0.00016438,2]
[420352862,1776013840699,-500.0,0.00016438,2]
[420352863,1776013840709,-500.0,0.00016438,2]
[420352864,1776013840722,-500.0,0.00016438,2]
[420352865,1776013840733,-500.0,0.00016438,2]
[420352866,1776013840749,-874.22,0.00016438,2]
[420352867,1776013840762,-500.0,0.00016438,2]
[420352869,1776013840774,-500.0,0.00016438,2]
[420352871,1776013840792,-500.0,0.00016438,2]
[420352872,1776013840804,-500.0,0.00016438,2]
[420352873,1776013840818,-500.0,0.00016438,2]
[420352874,1776013840834,-500.0,0.00016438,2]
[420352875,1776013840849,-500.0,0.00016438,2]
[420352877,1776013840858,-500.0,0.00016438,2]
[420352879,1776013840873,-3122.16,0.00016438,2]
[420352880,1776013840883,-500.0,0.00016438,2]
[420352881,1776013840899,-4198.1,0.00016438,2]
[420352882,1776013840912,-500.0,0.00016438,2]
[420352883,1776013840921,-8758.9,0.00016438,2]
[420352884,1776013840937,-1684.53,0.00016438,2]
[420352885,1776013840946,-5328.99,0.00016438,2]
[420352886,1776013840959,-563.70651132,0.00016438,2]
[420352887,1776013840968,-500.0,0.00016438,2]
[420352888,1776013840986,-6395.8,0.00016438,2]
[420352889,1776013840995,-500.0,0.00016438,2]
[420352890,1776013841005,-500.0,0.00016438,2]
[420352891,1776013841015,-500.0,0.00016438,2]
[420352892,1776013841030,-500.0,0.00016438,2]
[420352893,1776013841040,-543.54,0.00016438,2]
[420352894,1776013841051,-500.0,0.00016438,2]
[420352895,1776013841061,-500.0,0.00016438,2]
[420352896,1776013841075,-265.5493475,0.00016438,2]
[420352897,1776013841087,-5131.2,0.00016438,2]
[420352898,1776013841097,-500.0,0.00016438,2]
[420352899,1776013841111,-500.0,0.00016438,2]
[420352900,1776013841124,-500.0,0.00016438,2]
[420352901,1776013841134,-500.0,0.00016438,2]
[420352902,1776013841145,-500.0,0.00016438,2]
[420352903,1776013841154,-453.98367162,0.00016438,2]
[420352904,1776013841173,-500.0,0.00016438,2]
[420352905,1776013841183,-4424.79,0.00016438,2]
[420352906,1776013841194,-500.0,0.00016438,2]
[420352907,1776013841208,-1232.59,0.00016438,2]
[420352908,1776013841220,-500.0,0.00016438,2]
[420352909,1776013841230,-500.0,0.00016438,2]
[420352910,1776013841239,-500.0,0.00016438,2]
[420352911,1776013841255,-236.65015881,0.00016438,2]
[420352912,1776013841268,-3460.42,0.00016438,2]
[420352913,1776013841279,-500.0,0.00016438,2]
[420352914,1776013841294,-500.0,0.00016438,2]
[420352915,1776013841308,-500.0,0.00016438,2]
[420352916,1776013841318,-500.0,0.00016438,2]
[420352917,1776013841327,-500.0,0.00016438,2]
[420352918,1776013841342,-500.0,0.00016438,2]
[420352919,1776013841355,-500.0,0.00016438,2]
[420352920,1776013841366,-500.0,0.00016438,2]
[420352921,1776013841380,-693.67,0.00016438,2]
[420352922,1776013841394,-500.0,0.00016438,2]
[420352923,1776013841404,-881.71,0.00016438,2]
[420352924,1776013841413,-1528.0,0.00016438,2]
[420352925,1776013841430,-4439.0,0.00016517,2]
[420352926,1776013841442,-240.685,0.00016576,2]
[420352927,1776013841452,-325.61919141,0.00016585,2]
[420352928,1776013841462,-271.18963699,0.00016585,2]
[420352929,1776013841486,-2150.738,0.00016585,2]
[420352930,1776013841498,-155.0,0.00016711,2]
[420352931,1776013841507,-1296.2026,0.00016712,2]
[420352932,1776013841529,-521.96,0.00016712,2]
[420352933,1776013841539,-500.0,0.00016712,2]
[420352934,1776013841552,-628.4,0.00016712,2]
[420352935,1776013841573,-500.0,0.00016712,2]
[420352936,1776013841583,-500.0,0.00016712,2]
[420352937,1776013841596,-500.0,0.00016712,2]
[420352938,1776013841618,-500.0,0.00016712,2]
[420352939,1776013841628,-1114.91,0.00016712,2]
[420352940,1776013841640,-557.64091976,0.00016712,2]
[420352941,1776013841657,-500.0,0.00016712,2]
[420352942,1776013841667,-386.96119986,0.00016712,2]
[420352943,1776013841677,-500.0,0.00016712,2]
[420352944,1776013841692,-500.0,0.00016712,2]
[420352945,1776013841704,-4851.71,0.00016712,2]
[420352946,1776013841713,-500.0,0.00016712,2]
[420352947,1776013841722,-500.0,0.00016712,2]
[420352948,1776013841732,-190.36822729,0.00016712,2]
[420352949,1776013841741,-500.0,0.00016712,2]
[420352950,1776013841750,-500.0,0.00016712,2]
[420352951,1776013841759,-500.0,0.00016712,2]
[420352952,1776013841768,-500.0,0.00016712,2]
[420352953,1776013841777,-500.0,0.00016712,2]
[420352954,1776013841787,-500.0,0.00016712,2]
[420352955,1776013841796,-3842.06,0.00016712,2]
[420352956,1776013841805,-500.0,0.00016712,2]
[420352957,1776013841814,-500.0,0.00016712,2]
[420352958,1776013841824,-500.0,0.00016712,2]
[420352959,1776013841834,-500.0,0.00016712,2]
[420352960,1776013841843,-500.0,0.00016712,2]
[420352961,1776013841852,-510.94667618,0.00016712,2]
[420352962,1776013841862,-2872.61,0.00016712,2]
[420352963,1776013841871,-901.6,0.00016712,2]
[420352964,1776013841881,-513.10954426,0.00016712,2]
[420352965,1776013841890,-513.10076006,0.00016712,2]
[420352966,1776013841900,-751.83,0.00016712,2]
[420352967,1776013841909,-5895.0,0.00016712,2]
[420352968,1776013841918,-500.0,0.00016712,2]
[420352969,1776013841927,-500.0,0.00016712,2]
[420352970,1776013841937,-500.0,0.00016712,2]
[420352971,1776013841946,-500.0,0.00016712,2]
[420352972,1776013841956,-500.0,0.00016712,2]
[420352973,1776013841965,-500.0,0.00016712,2]
[420352974,1776013841974,-500.0,0.00016712,2]
[420352975,1776013841984,-500.0,0.00016712,2]
[420352976,1776013841993,-500.0,0.00016712,2]
[420352977,1776013842002,-500.0,0.00016712,2]
[420352978,1776013842011,-519.8240142,0.00016712,2]
[420352979,1776013842023,-500.0,0.00016712,2]
[420352980,1776013842035,-500.0,0.00016712,2]
[420352981,1776013842045,-500.0,0.00016712,2]
[420352982,1776013842054,-500.0,0.00016712,2]
[420352983,1776013842066,-500.0,0.00016712,2]
[420352984,1776013842079,-500.0,0.00016712,2]
[420352985,1776013842088,-500.0,0.00016712,2]
[420352986,1776013842101,-500.0,0.00016712,2]
[420352987,1776013842111,-500.0,0.00016712,2]
[420352988,1776013842126,-645.37651233,0.00016712,2]
[420352989,1776013842135,-874.22,0.00016712,2]
[420352990,1776013842152,-500.0,0.00016712,2]
[420352991,1776013842166,-500.0,0.00016712,2]
[420352992,1776013842177,-500.0,0.00016712,2]
[420352993,1776013842191,-500.0,0.00016712,2]
[420352994,1776013842207,-500.0,0.00016712,2]
[420352995,1776013842219,-500.0,0.00016712,2]
[420352996,1776013842233,-500.0,0.00016712,2]
[420352997,1776013842253,-615.84482892,0.00016712,2]
[420352998,1776013842263,-3122.16,0.00016712,2]
[420352999,1776013842278,-528.41933352,0.00016712,2]
[420353000,1776013842292,-4198.1,0.00016712,2]
[420353001,1776013842307,-500.0,0.00016712,2]
[420353002,1776013842319,-8758.9,0.00016712,2]
[420353003,1776013842328,-1684.53,0.00016712,2]
[420353004,1776013842342,-5328.99,0.00016712,2]
[420353005,1776013842355,-500.0,0.00016712,2]
[420353006,1776013842371,-6395.8,0.00016712,2]
[420353007,1776013842384,-560.26342021,0.00016712,2]
[420353008,1776013842395,-500.0,0.00016712,2]
[420353009,1776013842413,-500.0,0.00016712,2]
[420353010,1776013842423,-500.0,0.00016712,2]
[420353011,1776013842439,-543.54,0.00016712,2]
[420353012,1776013842456,-500.0,0.00016712,2]
[420353013,1776013842466,-500.0,0.00016712,2]
[420353014,1776013842478,-5131.2,0.00016712,2]
[420353015,1776013842498,-541.88423068,0.00016712,2]
[420353016,1776013842508,-500.0,0.00016712,2]
[420353017,1776013842517,-500.0,0.00016712,2]
[420353018,1776013842536,-581.05932271,0.00016712,2]
[420353019,1776013842546,-500.0,0.00016712,2]
[420353020,1776013842555,-500.0,0.00016712,2]
[420353022,1776013842565,-4424.79,0.00016712,2]
[420353023,1776013842578,-500.0,0.00016712,2]
[420353024,1776013842587,-1232.59,0.00016712,2]
[420353025,1776013842597,-500.0,0.00016712,2]
[420353026,1776013842606,-500.0,0.00016712,2]
[420353027,1776013842617,-500.0,0.00016712,2]
[420353028,1776013842629,-3460.42,0.00016712,2]
[420353029,1776013842639,-500.0,0.00016712,2]
[420353030,1776013842654,-500.0,0.00016712,2]
[420353031,1776013842664,-500.0,0.00016712,2]
[420353032,1776013842673,-500.0,0.00016712,2]
[420353033,1776013842683,-409.28258539,0.00016712,2]
[420353034,1776013842698,-500.0,0.00016712,2]
[420353035,1776013842708,-500.0,0.00016712,2]
[420353036,1776013842718,-500.0,0.00016712,2]
[420353037,1776013842729,-693.67,0.00016712,2]
[420353038,1776013842745,-500.0,0.00016712,2]
[420353039,1776013842754,-881.71,0.00016712,2]
[420353040,1776013842765,-487.0,0.00016712,2]
[420353041,1776013842778,-487.0,0.00016712,2]
[420353042,1776013842794,-487.0,0.00016712,2]
[420353043,1776013842805,-487.0,0.00016712,2]
[420353044,1776013842817,-487.0,0.00016712,2]
[420353045,1776013842838,-487.0,0.00016712,2]
[420353046,1776013842850,-487.0,0.00016712,2]
[420353047,1776013842862,-487.0,0.00016712,2]
[420353048,1776013842878,-487.0,0.00016712,2]
[420353049,1776013842889,-487.0,0.00016712,2]
[420353050,1776013842901,-487.0,0.00016712,2]
[420353051,1776013842921,-487.0,0.00016712,2]
[420353052,1776013842930,-487.0,0.00016712,2]
[420353053,1776013842945,-487.0,0.00016712,2]
[420353054,1776013842966,-487.0,0.00016712,2]
[420353055,1776013842976,-641.86,0.00016712,2]
[420353056,1776013843004,-1528.0,0.00016712,2]
[420353057,1776013843025,-4439.0,0.00016764,2]
[420353058,1776013843049,-500.0,0.00016773,2]
[420353059,1776013843070,-265.63568766,0.00016773,2]
[420353060,1776013843095,-4439.0,0.00016885,2]
[420353061,1776013843121,-160.0,0.00016915,7]
[420353062,1776013843139,-13598.448531,0.00016915,7]
[420353063,1776013843167,-27036.897062,0.00016915,7]
[420353064,1776013843183,-455.8808877,0.00016961,2]
[420353065,1776013843203,-500.0,0.00016978,2]
[420353066,1776013843221,-4439.0,0.00016983,2]
[420353067,1776013843240,-160.42306948,0.00016985,2]
[420353068,1776013843249,-1296.2026,0.00016986,2]
[420353069,1776013843270,-521.96,0.00016986,2]
[420353070,1776013843284,-500.0,0.00016986,2]
[420353071,1776013843294,-628.4,0.00016986,2]
[420353072,1776013843314,-500.0,0.00016986,2]
[420353073,1776013843329,-500.0,0.00016986,2]
[420353074,1776013843342,-500.0,0.00016986,2]
[420353075,1776013843358,-1114.91,0.00016986,2]
[420353076,1776013843369,-200.81660971,0.00016986,2]
[420353077,1776013843385,-172.44693809,0.00016986,2]
[420353078,1776013843404,-500.0,0.00016986,2]
[420353079,1776013843414,-4851.71,0.00016986,2]
[420353080,1776013843433,-500.0,0.00016986,2]
[420353081,1776013843458,-500.0,0.00016986,2]
[420353082,1776013843470,-500.0,0.00016986,2]
[420353083,1776013843485,-603.48311185,0.00016986,2]
[420353084,1776013843505,-324.87008988,0.00016986,2]
[420353120,1776013846122,-175.12991012,0.00016986,2]
[420353122,1776013846132,-282.28535098,0.00016986,2]
[420353124,1776013846153,-500.0,0.00016986,2]
[420353126,1776013846172,-500.0,0.00016986,2]
[420353128,1776013846186,-3842.06,0.00016986,2]
[420353130,1776013846196,-508.37479453,0.00016986,2]
[420353132,1776013846219,-500.0,0.00016986,2]
[420353134,1776013846233,-544.39683919,0.00016986,2]
[420353136,1776013846242,-500.0,0.00016986,2]
[420353138,1776013846271,-500.0,0.00016986,2]
[420353140,1776013846282,-2872.61,0.00016986,2]
[420353142,1776013846310,-901.6,0.00016986,2]
[420353145,1776013846326,-751.83,0.00016986,2]
[420353147,1776013846343,-4037.52545091,0.00016986,2]
[420353149,1776013846368,-1365.08688612,0.00016986,2]
[420353153,1776013846424,-492.38766297,0.00016986,2]
[420353156,1776013846446,-510.94322579,0.00016986,2]
[420353157,1776013846456,-500.0,0.00016986,2]
[420353159,1776013846472,-281.75720828,0.00016986,2]
[420353374,1776015046440,-5000.0,0.00013027,2]
[420353375,1776015046451,-605.0,0.00013027,2]
[420353376,1776015046467,-618.5623,0.00013027,2]
[420353377,1776015046477,-160.15776348,0.00013426,30]
[420353378,1776015046490,-160.15776349,0.00013562,30]
[420353379,1776015046500,-309.2811,0.00013678,2]
[420353380,1776015046514,-1000.0,0.00013699,2]
[420353381,1776015046530,-160.15776349,0.00013699,30]
[420353382,1776015046539,-737.304357,0.00014801,2]
[420353383,1776015046550,-160.0,0.00015297,2]
[420353384,1776015046559,-160.15776349,0.00015405,30]
[420353385,1776015046574,-160.15776349,0.00015528,30]
[420353386,1776015046583,-1000.0,0.00015577,2]
[420353387,1776015046592,-160.0,0.00015605,2]
[420353388,1776015046601,-800.78881745,0.00015707,30]
[420353389,1776015046618,-1371.91377954,0.00016137,2]
[420353390,1776015046627,-7096.20000001,0.00016138,2]
[420353391,1776015046639,-800.78881745,0.00016178,30]
[420353392,1776015046652,-1823.177261,0.00016186,2]
[420353393,1776015046664,-230.90093302,0.000162,2]
[420353394,1776015046674,-184.0,0.00016205,2]
[420353395,1776015046884,-441.0,0.00016205,2]
[420353396,1776015046902,-228.88,0.00016237,2]
[420353397,1776015046921,-500.0,0.00016237,2]
[420353398,1776015046936,-500.0,0.00016237,2]
[420353399,1776015046957,-500.0,0.00016237,2]
[420353400,1776015046977,-500.0,0.00016237,2]
[420353401,1776015047015,-395.52715146,0.00016237,2]
[420353402,1776015047028,-261.9754447,0.00016237,2]
[420353403,1776015047061,-500.0,0.00016237,2]
[420353404,1776015047072,-200.0,0.00016237,2]
[420353405,1776015047106,-462.60487915,0.00016237,2]
[420353406,1776015047118,-500.0,0.00016237,2]
[420353407,1776015047141,-500.0,0.00016237,2]
[420353408,1776015047167,-500.0,0.00016237,2]
[420353409,1776015047176,-500.0,0.00016237,2]
[420353410,1776015047185,-500.0,0.00016237,2]
[420353411,1776015047206,-500.0,0.00016237,2]
[420353412,1776015047215,-500.0,0.00016237,2]
[420353413,1776015047232,-500.0,0.00016237,2]
[420353414,1776015047247,-500.0,0.00016237,2]
[420353415,1776015047277,-500.0,0.00016237,2]
[420353416,1776015047287,-500.0,0.00016237,2]
[420353417,1776015047303,-500.0,0.00016237,2]
[420353418,1776015047337,-244.56408758,0.00016237,2]
[420353419,1776015047348,-500.0,0.00016237,2]
[420353420,1776015047360,-500.0,0.00016237,2]
[420353421,1776015047379,-500.0,0.00016237,2]
[420353422,1776015047390,-500.0,0.00016237,2]
[420353423,1776015047404,-500.0,0.00016237,2]
[420353424,1776015047418,-500.0,0.00016237,2]
[420353425,1776015047430,-500.0,0.00016237,2]
[420353426,1776015047440,-500.0,0.00016237,2]
[420353427,1776015047460,-500.0,0.00016237,2]
[420353428,1776015047470,-500.0,0.00016237,2]
[420353429,1776015047493,-500.0,0.00016237,2]
[420353430,1776015047504,-382.20952566,0.00016237,2]
[420353431,1776015047514,-500.0,0.00016237,2]
[420353432,1776015047530,-500.0,0.00016237,2]
[420353433,1776015047545,-500.0,0.00016237,2]
[420353434,1776015047555,-500.0,0.00016237,2]
[420353435,1776015047564,-435.4701673,0.00016237,2]
[420353436,1776015047575,-500.0,0.00016237,2]
[420353437,1776015047592,-500.0,0.00016237,2]
[420353438,1776015047601,-500.0,0.00016237,2]
[420353439,1776015047611,-446.92190307,0.00016237,2]
[420353440,1776015047641,-53.07809693,0.00016237,2]
[420353441,1776015047656,-300.0,0.00016237,2]
[420353442,1776015047665,-159.49668525,0.00016237,2]
[420353443,1776015047675,-319.20740158,0.00016238,2]
[420353446,1776015049904,-12475.79408853,0.00016238,2]
[420353447,1776015049917,-41.4670819,0.00016238,2]
[420353450,1776015138001,-183.104,0.00015913,2]
[420353451,1776015138082,-651.0,0.00015913,2]
[420353464,1776016232419,-5000.0,0.00012897,2]
[420353466,1776016232429,-603.0,0.00012897,2]
[420353468,1776016232456,-200.00000001,0.00013259,2]
[420353470,1776016232466,-1000.0,0.00013699,2]
[420353472,1776016232476,-4046.0830613,0.00014881,2]
[420353474,1776016232494,-389.0628006,0.00015176,2]
[420353476,1776016232519,-457.6204836,0.00015319,2]
[420353478,1776016232532,-160.0,0.00015664,2]
[420353480,1776016232543,-685.07361089,0.0001594,2]
[420353482,1776016232575,-515.35094619,0.0001594,2]
[420353484,1776016232585,-500.0,0.00016037,2]
[420353486,1776016232598,-183.38281129,0.00016037,2]
[420353488,1776016232627,-388.70812095,0.00016037,2]
[420353586,1776016241685,-111.29187905,0.00016037,2]
[420353588,1776016241705,-276.86900602,0.00016037,2]
[420353590,1776016241721,-262.09327486,0.00016037,2]
[420353592,1776016241739,-53.96586207,0.00016037,2]
[420353595,1776016241763,-201.40026689,0.00016037,2]
[420353597,1776016241778,-300.0,0.00016037,2]
[420353599,1776016241792,-489.41329636,0.00016037,2]
[420353630,1776016244181,-5000.0,0.00015877,2]